Cogmind - Beta 16 @@@ ROGUE MODE // 2026.01.12 @ 18:02:56 Player: naththebg Result: Destroyed by S-43 Plague with Heavy Machine Gun Performance ------------- Evolutions (7) 3500 Regions Visited (19) 3800 Robots Destroyed (299) 1495 Value Destroyed (14599) 14599 Prototype IDs (29) 580 Alien Tech Used (7) 1400 Bonus (10751) 10751 TOTAL SCORE: 36125 Bonus ------- High Alert Combat Kills 3416 Follower Combat Kills 3135 Entered Garrisons 1200 Used RIF Installer 3000 Cogmind --------- Core Integrity 0/1300 Matter 144/300 Energy 100/100 System Corruption 14% Temperature Cool (0) Movement Core (50) Location -3/Section 7 Parts ------- > --- POWER (1) -------- (None) > --- PROPULSION (3) --- (None) > --- UTILITY (14) ----- Advanced Visual Processing Unit Advanced Signal Interpreter Experimental Core Analyzer Experimental Core Analyzer Relay Coupler [Swarmer] (18) Relay Coupler [Sentry] (20) Relay Coupler [Specialist] (12) Core Physics Calibrator > --- WEAPON (3) ------- (None) > --- INVENTORY (5) ---- Phase Armor Subatomic Replicator Core Cannon Peak State ------------ > --- POWER ------------ Light Antimatter Reactor > --- PROPULSION ------- Improved Antigrav System Improved Antigrav System Improved Antigrav System > --- UTILITY ---------- Medium Storage Unit Advanced Visual Processing Unit Advanced Sensor Array Advanced Signal Interpreter Experimental Core Analyzer Experimental Core Analyzer Improved Core Shielding Relay Coupler [Swarmer] Relay Coupler [Grunt] Relay Coupler [Sentry] Relay Coupler [Specialist] Core Physics Calibrator > --- WEAPON ----------- Sigix Broadsword > --- INVENTORY -------- Phase Armor Subatomic Replicator Core Cannon [Rating: 131] Favorites ----------- Power Improved Ion Engine Engine Improved Ion Engine Power Core Fission Core Reactor Antimatter Reactor Propulsion Armored Huge Wheel Treads Enhanced Armored Medium Treads Leg Carbon-fiber Leg Wheel Armored Huge Wheel Hover Unit Improved Antigrav System Utility Advanced Visual Processing Unit Device Improved Hardlight Generator Storage Huge Storage Unit Processor Advanced Visual Processing Unit Hackware Relay Coupler [Grunt] Protection Improved Utility Shielding Artifact Core Physics Calibrator Weapon Heavy Mass Driver Energy Gun Improved Medium Laser Energy Cannon Advanced Beam Cannon Ballistic Gun Assault Rifle Ballistic Cannon Heavy Mass Driver Launcher Rocket Launcher Special Weapon Remote Datajack Impact Weapon Impact Mace Slashing Weapon Sigix Broadsword Build | -11 -10 -10 -9 -9 -8 -8 -8 -8 -7 -7 -6 -6 -5 -5 -4 -4 -3 -3 -3 ------- Run | Yrd Mat Min Mat Min Mat Gar Mat Gar Fac Gar Fac Gar Fac Gar Fac Gar Res Qua Sec Slots Evolved 14 | . . . 2 . 2 . . . 2 . 2 . 2 . 2 . 2 . . Power . | . . . . . . . . . . . . . . . . . . . . Propulsion 1 | . . . 1 . . . . . . . . . . . . . . . . Utility 12 | . . . 1 . 1 . . . 2 . 2 . 2 . 2 . 2 . . Weapon 1 | . . . . . 1 . . . . . . . . . . . . . . Parts Attached 187 | 7 3 . 21 2 9 4 14 14 16 16 6 9 5 10 6 4 26 13 2 Power 20 | 1 1 . 2 . . . 1 2 2 3 2 1 . . 1 . 3 1 . Engine 10 | 1 1 . 2 . . . 1 2 1 2 . . . . . . . . . Core 3 | . . . . . . . . . 1 1 1 . . . . . . . . Reactor 7 | . . . . . . . . . . . 1 1 . . 1 . 3 1 . Propulsion 39 | 2 1 . 8 . 4 . 4 4 2 2 . 1 1 . . . 5 5 . Treads 5 | . . . . . . . . . . . . . . . . . 4 1 . Leg 15 | 2 1 . 8 . 4 . . . . . . . . . . . . . . Wheel 16 | . . . . . . . 4 4 2 2 . 1 1 . . . 1 1 . Hover 3 | . . . . . . . . . . . . . . . . . . 3 . Flight . | . . . . . . . . . . . . . . . . . . . . Utility 83 | 1 1 . 6 2 3 1 7 3 4 9 3 5 3 7 5 4 12 5 2 Device 16 | . . . 2 1 . . 2 . . 2 2 . 2 . . . 4 1 . Storage 9 | 1 . . 2 . . . 2 . . . . . . . 2 . 1 . 1 Processor 6 | . 1 . 1 . 1 . . . . . . . . . . . 2 1 . Hackware 37 | . . . . . 1 1 1 3 2 5 1 4 1 6 2 4 5 1 . Protection 13 | . . . 1 1 1 . 2 . 2 2 . 1 . 1 1 . . 1 . Artifact 2 | . . . . . . . . . . . . . . . . . . 1 1 Weapon 45 | 3 . . 5 . 2 3 2 5 8 2 1 2 1 3 . . 6 2 . Energy Gun 11 | 1 . . 4 . 1 1 1 1 2 . . . . . . . . . . Energy Cannon 5 | . . . . . 1 . . 1 1 . . . 1 . . . . 1 . Ballistic Gun 2 | 2 . . . . . . . . . . . . . . . . . . . Ballistic Cannon 7 | . . . . . . . 1 . . 1 . . . . . . 5 . . Launcher 10 | . . . 1 . . 2 . 2 2 . 1 . . 2 . . . . . Special Weapon 8 | . . . . . . . . 1 2 1 . 2 . 1 . . 1 . . Impact Weapon 1 | . . . . . . . . . 1 . . . . . . . . . . Slashing Weapon 1 | . . . . . . . . . . . . . . . . . . 1 . Piercing Weapon . | . . . . . . . . . . . . . . . . . . . . Special Melee Weapon . | . . . . . . . . . . . . . . . . . . . . Unidentified Prototypes 18 | . . . 1 1 . . . . 1 . . . 1 . 1 . 6 5 2 Parts Lost 66 | . . . 1 . . 5 7 15 . 2 . 1 . 2 . . 25 . 8 Power 10 | . . . . . . 1 1 2 . 1 . . . . . . 4 . 1 Propulsion 16 | . . . . . . 1 3 4 . . . . . 1 . . 4 . 3 Utility 21 | . . . 1 . . 1 2 2 . . . 1 . . . . 11 . 3 Weapon 19 | . . . . . . 2 1 7 . 1 . . . 1 . . 6 . 1 Highest Loss Streak 10 | . . . 1 . . 3 3 10 . 1 . 1 . 2 . . 10 . 8 To Critical Strikes 2 | . . . . . . . . . . . . . . . . . 2 . . Average Backups 18 | 4 7 8 10 15 14 13 20 19 23 21 21 21 20 21 21 21 17 3 3 Power . | . 1 1 1 1 1 . . . 1 . 1 1 1 1 1 2 . . . Propulsion 2 | 3 5 5 4 5 5 4 5 4 2 1 1 1 2 1 1 1 2 . . Utility 9 | . . 1 . 3 3 5 10 13 15 12 12 12 11 13 14 13 9 1 1 Weapon 3 | . . 1 3 5 4 3 4 1 3 5 5 5 5 4 4 4 2 1 1 Tool/Special . | . . . . . . . . . . . . . . . . . . . . Unused Backups 32 | . 4 . 5 . 3 . . . 7 2 . . . . . 2 8 . 1 Power 1 | . 1 . . . . . . . . . . . . . . . . . . Propulsion 11 | . 3 . 3 . 2 . . . 2 . . . . . . . 1 . . Utility 14 | . . . . . . . . . 4 2 . . . . . 2 6 . . Weapon 5 | . . . 2 . 1 . . . 1 . . . . . . . 1 . . Tool/Special 1 | . . . . . . . . . . . . . . . . . . . 1 Average Slot Usage (%) 87 | . 90 100 97 100 96 97 97 89 87 85 83 84 85 86 81 88 78 64 74 Engine 4 | . 14 14 11 11 9 8 8 5 6 4 3 . . . . . . . . Reactor 1 | . . . . . . . . . . . . 3 5 5 5 5 3 1 3 Leg 7 | . 28 28 31 33 27 27 1 . . . . . . . . . . . . Wheel 10 | . . . . . . . 24 26 17 15 13 13 11 10 10 10 3 2 . Device 8 | . . . 10 11 8 9 8 2 . 6 11 8 19 15 15 15 9 3 4 Storage 7 | . 14 14 11 11 9 9 9 9 7 7 6 6 5 5 6 5 6 . 2 Processor 7 | . 5 14 4 1 6 9 9 9 7 7 6 6 5 5 5 5 9 18 19 Hackware 13 | . . . . . . . 4 11 17 15 18 21 18 21 15 20 21 18 19 Protection 6 | . . . 5 9 9 5 3 2 6 6 6 7 5 6 11 15 6 3 3 Energy Gun 6 | . 14 14 20 22 24 20 12 8 6 . . . . . . . . . . Energy Cannon 2 | . . . . . . 5 9 8 6 2 . . . . . . . . . Ballistic Cannon 2 | . . . . . . . 4 . . 4 6 6 5 4 5 5 3 1 . Special Weapon 3 | . . . . . . . . 1 5 6 6 5 5 4 5 5 3 . . Peak Build Rating 131 | 6 8 8 20 25 32 33 33 30 52 59 66 78 85 90 101 97 128 125 131 Average Rating 57 | 3 6 8 16 20 29 30 28 26 47 55 63 70 81 86 91 96 110 91 119 On Entrance 48 | . 6 8 8 20 21 31 33 28 28 52 58 65 78 84 89 94 97 52 116 Avg Prop Armor Cover (%) 33 | 25 . . . . . . . . . . . . . . . . 27 33 . Naked Turns . | . . . . . . . . . . . . . . . . . . . . Heaviest Build 152 | 14 14 14 35 38 44 47 102 106 124 124 124 138 138 140 147 147 152 37 36 Greatest Support 105 | 20 20 20 39 39 45 45 45 34 38 40 40 44 44 44 44 44 105 70 39 Greatest Overweight (x) 9 | 1 . . . . . 1 4 9 3 3 3 3 3 4 3 3 9 4 3 Average Overweight (x) 1 | . . . . . . . 1 2 2 2 2 2 2 3 3 3 2 . . Largest Inventory Capacity 25 | 8 8 8 15 15 15 15 25 25 25 25 25 25 25 25 25 25 25 5 10 Average Capacity 21 | 7 8 8 10 15 15 15 23 25 25 25 25 25 25 25 25 25 24 5 8 Most Carried 25 | 7 8 8 15 15 15 15 25 25 25 25 25 25 25 25 25 25 25 5 5 Average Carried 19 | 4 7 8 9 15 14 13 20 20 24 24 24 24 23 24 24 24 18 4 5 Final Capacity 25 | 8 8 8 15 15 15 15 25 25 25 25 25 25 25 25 25 25 5 5 5 Final Carried 25 | 6 8 8 15 15 14 15 25 25 25 25 25 25 23 25 25 25 5 5 5 Class Distribution -------------------- 23% | Botlord-Tank 19% | Bothacker-Tank 13% | Mutant 10% | Tank 7% | Bothacker-Mutant 6% | Skirmisher 5% | Commander-Tank 3% | Botlord-Gunner Dominant Class ---------------- Mutant | -10/Materials Mutant | -10/Mines Mutant | -9/Materials Mutant | -9/Mines Tank | -8/Materials Tank | -8/Garrison Skirmisher | -8/Materials Bothacker-Skirmisher | -8/Garrison Bothacker-Tank | -7/Factory Bothacker-Tank | -7/Garrison Bothacker-Tank | -6/Factory Botlord-Tank | -6/Garrison Botlord-Tank | -5/Factory Botlord-Tank | -5/Garrison Botlord-Tank | -4/Factory Commander-Tank | -4/Garrison Botlord-Gunner | -3/Research Mutant | -3/Quarantine Scavenger-Scout | -3/Section 7 Resources | -11 -10 -10 -9 -9 -8 -8 -8 -8 -7 -7 -6 -6 -5 -5 -4 -4 -3 -3 -3 ----------- Run | Yrd Mat Min Mat Min Mat Gar Mat Gar Fac Gar Fac Gar Fac Gar Fac Gar Res Qua Sec Matter Collected 10452 | 162 178 20 390 30 124 397 586 332 291 554 425 1419 147 1321 603 306 2743 367 57 Remotely . | . . . . . . . . . . . . . . . . . . . . Salvage Created 10294 | . 178 41 1180 42 691 629 937 874 466 483 324 1044 . 905 111 . 2136 196 57 Parts 491 | . 12 2 59 . 31 43 45 56 31 22 15 38 . 54 5 . 60 15 3 Haulers Intercepted 7 | . . . 4 . 1 . 2 . . . . . . . . . . . . Recyclers Shooed 3 | . . . 1 . 1 . . . . . . . . . . . 1 . . Parts Field Recycled . | . . . . . . . . . . . . . . . . . . . . Retrieved Matter . | . . . . . . . . . . . . . . . . . . . . Parts Self-Destructed . | . . . . . . . . . . . . . . . . . . . . Prevented . | . . . . . . . . . . . . . . . . . . . . Parts Restored . | . . . . . . . . . . . . . . . . . . . . Kills | -11 -10 -10 -9 -9 -8 -8 -8 -8 -7 -7 -6 -6 -5 -5 -4 -4 -3 -3 -3 ------- Run | Yrd Mat Min Mat Min Mat Gar Mat Gar Fac Gar Fac Gar Fac Gar Fac Gar Res Qua Sec Combat Hostiles Destroyed 234 | . 4 3 25 1 6 30 22 27 6 18 7 25 . 27 1 . 26 5 1 Melee 1 | . . . . . . . . . . . . . . . . . . . 1 Guns 43 | . 4 3 16 1 5 7 2 3 2 . . . . . . . . . . Cannons 97 | . . . . . 1 . 9 6 2 11 3 24 . 13 1 . 22 5 . AOE 88 | . . . 9 . . 22 8 18 2 6 4 1 . 14 . . 4 . . Classes Destroyed 23 | . 2 1 5 . 3 1 1 . 1 3 . 1 . 2 . . 3 . . Worker 10 | . . . . . . . 1 . 5 . . . . . . . 4 . . Builder 6 | . . . . . 2 . . . . . . . . . . . 3 . 1 Tunneler 3 | . . . . . . . . . 1 . . . . . 1 . 1 . . Hauler 7 | . . . 4 . 1 . 2 . . . . . . . . . . . . Recycler 18 | . . . 2 . 3 . . . 2 . 1 . . . . . 10 . . Operator 2 | . . . 1 . . . 1 . . . . . . . . . . . . Drone 1 | . . . . . . . . . . . . . . . . . 1 . . Watcher 16 | . 1 . 3 . 2 1 3 . 1 . 2 2 . . . . 1 . . Swarmer 59 | . . 3 6 . . 17 3 17 2 3 4 . . . . . 1 2 1 Cutter 6 | . . . . . . 2 . . . . . . . 4 . . . . . Saboteur 5 | . . . . . . . . . . . . . . 4 . . 1 . . Grunt 82 | . 4 . 14 1 2 6 13 6 1 3 . 13 . 11 1 . 7 . . Brawler 5 | . . . . . . . . . . . . 1 . 3 . . 1 . . Duelist 2 | . . . 1 . . . . . . . . . . . . . . 1 . Protector 1 | . . . . . . . . . . 1 . . . . . . . . . Sentry 26 | . . . 4 . 2 1 5 1 . 5 1 6 . 1 . . . . . Demolisher 1 | . . . . . . . . . . 1 . . . . . . . . . Specialist 3 | . . . . . . . . . . 2 . . . . . . 1 . . Hunter 23 | . . . . . 1 . 1 . 1 1 2 4 . 3 . . 10 . . Programmer 20 | . . . . . 1 4 . 3 2 2 . 1 . 1 . . 4 2 . Heavy 1 | . . . . . . . . . . . . . . . . . 1 . . Behemoth 1 | . . . . . . . . . . . . . . 1 . . . . . Executioner 1 | . . . . . . . . . . . . . . . . . 1 . . Best Kill Streak 23 | . 3 3 6 1 5 5 7 18 4 8 4 5 . 7 2 . 23 3 1 Combat Bots Only 18 | . 2 3 5 1 2 5 6 18 2 8 4 5 . 7 1 . 13 3 1 Max Kills in Single Turn 7 | . 1 2 3 1 2 3 2 4 2 3 4 1 . 7 1 . 5 1 1 Gunslinging 1 | . . 1 1 . . . . . . . . . . . . . . . . Exploded 7 | . . . 3 . . 3 2 4 2 3 4 1 . 7 . . 2 . . Melee 1 | . . . . . . . . . . . . . . . . . . . 1 Uniques/NPCs Destroyed . | . . . . . . . . . . . . . . . . . . . . Combat | -11 -10 -10 -9 -9 -8 -8 -8 -8 -7 -7 -6 -6 -5 -5 -4 -4 -3 -3 -3 -------- Run | Yrd Mat Min Mat Min Mat Gar Mat Gar Fac Gar Fac Gar Fac Gar Fac Gar Res Qua Sec Hostile Shots Fired 1639 | . 16 14 43 9 31 64 79 109 15 302 31 286 11 95 3 . 438 17 76 Missed 514 | . 3 2 14 2 15 29 19 31 5 96 18 89 2 33 2 . 124 5 25 Hits 1125 | . 13 12 29 7 16 35 60 78 10 206 13 197 9 62 1 . 314 12 51 Melee 5 | . . . . . . . . . . . . . . 2 . . . 3 . Projectile 1120 | . 13 12 29 7 16 35 60 78 10 206 13 197 9 60 1 . 314 9 51 AOE 10 | . . . . . . 2 . . . . . . . . . . 8 . . Critical Strikes 60 | . . . 1 . 1 . 3 3 1 1 . 2 . 6 . . 37 2 3 Actively Blocked 3 | . . . . . . . . . . . . . . 1 . . 2 . . Part Disruptions 3 | . . . . . . . . 1 . . . . . . . . 2 . . Actively Blocked 1 | . . . . . . . . . . . . . . . . . 1 . . Damage Taken 16455 | . 187 91 444 80 207 784 935 1119 179 1541 157 1308 212 1432 20 . 6085 422 1252 Core 2433 | . 69 17 36 34 20 105 74 150 15 185 27 115 20 245 . . 875 . 446 Absorbed by Shields 2257 | . . . . . . . . . . 406 66 720 72 374 6 . 613 . . Redirected to Shielding 410 | . . . . . . . . . . 13 16 27 11 119 . . 160 . 64 Ignored by Resistances 384 | . . . . . . . . . . 150 . . . . . . 234 . . Regen/Repaired (Parts) 2514 | . . . 23 . . . 132 . . . 94 1037 127 826 20 . 25 196 34 Core Remaining (%) 76 | 100 . 65 . 82 . . . 36 . 71 . 83 . 73 . 100 . . . Volleys Fired 975 | . 16 4 61 6 27 76 72 125 26 81 14 112 16 93 25 26 159 36 . Largest 3 | . 2 2 2 2 3 3 3 3 3 2 1 1 1 2 1 1 1 1 . Hottest 213 | . 70 70 126 112 180 187 189 196 213 126 65 90 65 117 65 65 68 90 . Shots Fired 1277 | . 32 8 111 12 81 127 159 150 31 83 14 112 16 95 25 26 160 35 . Gun 418 | . 32 8 99 12 77 73 55 56 6 . . . . . . . . . . Cannon 617 | . . . . . 4 34 94 70 16 58 9 88 7 63 4 11 127 32 . Launcher 79 | . . . 12 . . 20 10 12 4 10 1 1 . 5 . . 4 . . Special 163 | . . . . . . . . 12 5 15 4 23 9 27 21 15 29 3 . Kinetic 438 | . 16 4 . . . . 41 1 . 37 9 87 7 63 4 11 127 31 . Thermal 597 | . 16 4 99 12 81 107 108 125 22 21 . 1 . . . . . 1 . Explosive 79 | . . . 12 . . 20 10 12 4 10 1 1 . 5 . . 4 . . Electromagnetic . | . . . . . . . . . . . . . . . . . . . . Robot Hit Streak 31 | . 8 9 13 4 8 16 10 27 9 17 11 11 10 17 18 31 9 5 . Robot Miss Streak 6 | . 2 2 2 4 3 2 6 4 2 2 2 3 2 4 1 3 5 2 . Penetration Max 1 | . . . . . . . . . . . 1 . . . . . 1 . . Secondary Targets 3 | . . 1 1 . . . . 1 . . . . . . . . . . . Max Gunslinging Chain 1 | . . 1 1 . . . . 1 . . . . . . . . . . . Shots Hit Robots 798 | . 25 5 71 7 45 70 88 93 19 58 10 73 12 60 23 15 108 13 3 Core Hits 529 | . 9 3 44 1 25 56 44 52 12 31 12 24 1 62 4 . 136 8 5 Critical Kills 3 | . . . . . . . 3 . . . . . . . . . . . . Critical Parts Destroyed . | . . . . . . . . . . . . . . . . . . . . Critical Strikes 57 | . . 1 5 2 7 5 5 3 . 2 . 10 2 3 1 . 9 2 . Burn 24 | . . 1 5 2 7 5 1 3 . . . . . . . . . . . Meltdown 3 | . . . . . . . 3 . . . . . . . . . . . . Blast 30 | . . . . . . . 1 . . 2 . 10 2 3 1 . 9 2 . Melee Attacks 24 | . . . . . . . . . 8 6 . . . . . . . . 10 Impact 14 | . . . . . . . . . 8 6 . . . . . . . . . Slashing 10 | . . . . . . . . . . . . . . . . . . . 10 Piercing . | . . . . . . . . . . . . . . . . . . . . Sneak Attacks 4 | . . . . . . . . . 3 . . . . . . . . . 1 Combat Hostiles . | . . . . . . . . . . . . . . . . . . . . Follow-up Attacks . | . . . . . . . . . . . . . . . . . . . . Damage Inflicted 36382 | . 319 90 1766 143 873 3643 2569 3368 1006 2901 736 3457 390 4194 246 189 9672 499 321 Guns 4729 | . 319 90 1161 121 780 1013 489 701 55 . . . . . . . . . . Cannons 18735 | . . . . . 82 144 1216 1246 267 1864 369 3457 390 2283 194 189 6535 499 . Explosions 12102 | . . . 600 . . 2486 864 1421 365 929 367 . . 1911 52 . 3107 . . Melee 687 | . . . . . . . . . 319 107 . . . . . . . . 261 Ramming 129 | . . . 5 22 11 . . . . 1 . . . . . . 30 . 60 Kinetic 15902 | . 181 40 . . . . 518 . . 1247 369 3457 390 2283 194 189 6535 499 . Thermal 8027 | . 138 50 1161 121 862 1157 1187 1947 579 617 208 . . . . . . . . Explosive 11585 | . . . 600 . . 2486 864 1421 108 929 159 . . 1911 . . 3107 . . Electromagnetic 52 | . . . . . . . . . . . . . . . 52 . . . . Impact 426 | . . . . . . . . . 319 107 . . . . . . . . . Slashing 261 | . . . . . . . . . . . . . . . . . . . 261 Piercing . | . . . . . . . . . . . . . . . . . . . . Highest Corruption 14 | . . . . . 1 2 2 2 1 1 . 1 . 1 . . 13 14 14 Average Corruption 2 | . . . . . 1 1 2 2 1 1 . 1 . 1 . . 5 13 14 Corruption Purged . | . . . . . . . . . . . . . . . . . . . . Corruption Blocked . | . . . . . . . . . . . . . . . . . . . . Effects 136 | . . . . . . 10 14 23 4 8 . 14 . 10 . . 14 28 11 Message Errors 32 | . . . . . . 2 5 8 2 1 . 2 . 1 . . 2 7 2 Matter Fused 35 | . . . . . . 3 6 1 1 1 . 6 . 4 . . 4 5 4 Heat Flow Errors 14 | . . . . . . 3 . 4 . . . 1 . . . . 2 3 1 Energy Discharges 19 | . . . . . . 1 . 3 . 3 . . . 2 . . 2 8 . Parts Rejected 1 | . . . . . . . . . . . . . . . . . . 1 . Data Loss (minor) 13 | . . . . . . 1 1 2 1 1 . 1 . 2 . . 2 1 1 Data Loss (major) 12 | . . . . . . . . 1 . 2 . 4 . 1 . . 1 1 2 Misfires 8 | . . . . . . . 2 4 . . . . . . . . 1 1 . Misdirections 1 | . . . . . . . . . . . . . . . . . . . 1 Weapon Failures 1 | . . . . . . . . . . . . . . . . . . 1 . Overload Shots 19 | . . . . . . . . . 4 13 . 1 . . . . . 1 . Effects 1 | . . . . . . . . . . . . . . . . . . 1 . Energy Bleed 1 | . . . . . . . . . . . . . . . . . . 1 . Overflow Damage 2188 | . . . 9 . . 189 63 48 186 193 134 183 . 197 26 22 938 . . Projectiles 1614 | . . . . . . 19 18 37 . 167 44 183 . 173 26 22 925 . . Explosions 410 | . . . 9 . . 170 45 11 22 26 90 . . 24 . . 13 . . Melee 164 | . . . . . . . . . 164 . . . . . . . . . . Knockbacks 62 | . . . . . . . 4 . 1 6 . 8 . 6 2 2 28 5 . Impact 1 | . . . . . . . . . 1 . . . . . . . . . . Kinetic 59 | . . . . . . . 4 . . 6 . 8 . 5 2 2 27 5 . Secondary 2 | . . . . . . . . . . . . . . 1 . . 1 . . Self-Inflicted Damage 1003 | . . . 77 . . 266 . 79 . 60 . . . 321 . . 172 . 28 Shots 29 | . . . 3 . . 7 . 3 . 2 . . . 7 . . 7 . . Rammed 11 | . . . . . . . . . . 1 . . . . . . 2 . 8 Targets Rammed 21 | . . . 3 5 2 . . . . 1 . . . . . . 2 . 8 Kicked 10 | . . . 3 5 2 . . . . . . . . . . . . . . Crushed . | . . . . . . . . . . . . . . . . . . . . Highest Temperature 394 | . 147 36 144 2 304 313 394 238 161 297 24 248 90 169 35 45 172 185 286 Average Temperature 64 | . 49 19 34 2 75 93 123 55 55 72 6 43 49 32 18 21 48 93 130 Received Heat Transfer 2742 | . 102 . 141 42 72 72 396 261 9 354 12 353 29 296 . . 488 9 106 Effects 2 | . . . . . . 1 1 . . . . . . . . . . . . Shutdowns 1 | . . . . . . . 1 . . . . . . . . . . . . Energy Bleed 1 | . . . . . . 1 . . . . . . . . . . . . . Siege Activations . | . . . . . . . . . . . . . . . . . . . . Martial Activations . | . . . . . . . . . . . . . . . . . . . . Shielding Activations . | . . . . . . . . . . . . . . . . . . . . Robots Disrupted . | . . . . . . . . . . . . . . . . . . . . Combat Hostiles . | . . . . . . . . . . . . . . . . . . . . Robots Corrupted 1 | . . . . . . . . . 1 . . . . . . . . . . Combat Hostiles . | . . . . . . . . . . . . . . . . . . . . Parts Fried 1 | . . . . . . . . . 1 . . . . . . . . . . Impact Corruptions 5 | . . . . . . . . . 5 . . . . . . . . . . Robots Melted 8 | . . . 1 . . 2 3 1 . 1 . . . . . . . . . Combat Hostiles 5 | . . . . . . 1 3 . . 1 . . . . . . . . . Parts Melted 41 | . 1 1 5 1 10 10 7 1 1 3 1 . . . . . . . . Heat Transferred 16303 | . 407 222 2886 407 2331 2627 2442 3552 644 635 150 . . . . . . . . Parts Sabotaged . | . . . . . . . . . . . . . . . . . . . . Parts Stolen . | . . . . . . . . . . . . . . . . . . . . Parts Stripped . | . . . . . . . . . . . . . . . . . . . . Power Chain Reactions . | . . . . . . . . . . . . . . . . . . . . Alert | -11 -10 -10 -9 -9 -8 -8 -8 -8 -7 -7 -6 -6 -5 -5 -4 -4 -3 -3 -3 ------- Run | Yrd Mat Min Mat Min Mat Gar Mat Gar Fac Gar Fac Gar Fac Gar Fac Gar Res Qua Sec Maximum Alert Level 5 | . . . 2 . . 3 2 3 2 3 3 5 4 5 4 4 3 2 1 Low Security (%) 18 | 100 100 100 79 100 100 11 19 2 7 10 . . . . . . . . 67 Level 1 13 | . . . 20 . . 3 62 23 59 13 . . . . . . . . 32 Level 2 21 | . . . . . . 47 17 12 33 49 51 16 . . . . 20 100 . Level 3 29 | . . . . . . 37 . 61 . 26 48 20 88 42 34 80 79 . . Level 4 8 | . . . . . . . . . . . . 30 11 30 65 19 . . . Level 5 6 | . . . . . . . . . . . . 32 . 26 . . . . . High Security . | . . . . . . . . . . . . . . . . . . . . Max Security . | . . . . . . . . . . . . . . . . . . . . Peak Influence 1925 | . 50 76 405 143 122 985 495 1032 666 1094 869 1925 1128 1923 1404 1160 1011 575 313 Initial 1010 | . . 3 29 143 16 79 479 174 541 93 574 562 1010 761 1009 720 652 525 285 Average 676 | . 19 38 127 39 31 609 295 673 358 563 666 1255 993 1294 1213 1030 857 531 194 Influence Increases 12359 | . 108 86 835 50 277 956 744 1048 446 1021 704 1453 308 1252 555 440 1636 268 172 Destroy 0b10 Robot/C 5620 | . 80 60 520 20 120 600 440 580 140 380 300 600 140 640 140 . 740 100 20 Destroy 0b10 Robot/NC 370 | . 5 . 55 . 40 20 35 20 45 5 25 10 . . 5 . 100 . 5 Destroy Leader 764 | . 22 10 126 . 56 30 120 30 42 20 66 30 30 20 20 . 132 10 . Allied During Kill 1455 | . . 4 5 . . . . 14 9 129 229 133 126 155 165 . 486 . . Successful Hack 212 | . . 12 12 . 11 14 5 24 39 14 3 14 . 14 . 18 6 5 21 Disable Machine 825 | . . . 45 . 15 15 45 15 135 30 30 30 . . 225 . 90 120 30 Anti-Garrison Action 1800 | . . . . . . 150 . 200 . 350 . 450 . 250 . 400 . . . Destroy Structure 893 | . 1 . 57 . 5 127 54 90 36 93 36 81 12 173 . 22 82 18 6 Partial Spotted 30 | . . . 15 . . . . . . . . . . . . . . . 15 Lose Combat Pursuer 390 | . . . . 30 30 . 45 75 . . 15 105 . . . . . 15 75 Influence Decreases 12232 | . 100 18 543 376 197 93 1460 285 1345 60 994 332 1145 417 1449 309 1862 695 552 Entered New Map 5844 | . . 5 47 225 26 43 506 95 491 40 520 242 915 327 914 309 508 409 222 Time Decay 3383 | . 100 13 456 151 171 . 434 . 534 . 294 . 190 . 180 . 474 286 100 Lost Part 660 | . . . 10 . . 50 70 150 . 20 . 10 . 20 . . 250 . 80 Lost Ally 1140 | . . . . . . . . 40 20 . 180 80 40 70 80 . 630 . . Purge Threat 1205 | . . . 30 . . . 450 . 300 . . . . . 275 . . . 150 Squads Dispatched 31 | . 1 . 3 . 1 . 5 . 3 . 1 . 1 . 5 . 8 2 1 Investigation 6 | . 1 . 2 . . . 2 . . . 1 . . . . . . . . Extermination 6 | . . . . . . . . . 3 . . . . . . . 2 1 . Reinforcement 10 | . . . 1 . . . 2 . . . . . . . 2 . 4 . 1 Assault 3 | . . . . . . . . . . . . . . . 1 . 1 1 . Garrison 6 | . . . . . 1 . 1 . . . . . 1 . 2 . 1 . . Intercept . | . . . . . . . . . . . . . . . . . . . . Searches Triggered . | . . . . . . . . . . . . . . . . . . . . Unchained Authorized 1 | . . . . . . . . . . . . . . . . . 1 . . Construction Impeded 2 | . . . . . . . . . . . . . . . 2 . . . . Haulers Reinforced 2 | . . . . . . . . . . . . . . . . . 2 . . Active Scanning Responses . | . . . . . . . . . . . . . . . . . . . . Cargo Convoy Interrupts 1 | . . . . . . . . . . . . . . . . . 1 . . Alert ID Control Effect 35 | . . . . . . . . . 1 2 2 4 1 2 2 . 21 . . Stealth | -11 -10 -10 -9 -9 -8 -8 -8 -8 -7 -7 -6 -6 -5 -5 -4 -4 -3 -3 -3 --------- Run | Yrd Mat Min Mat Min Mat Gar Mat Gar Fac Gar Fac Gar Fac Gar Fac Gar Res Qua Sec Distress Signals 15 | . . . 1 . 1 . 1 . 1 . 1 . . . 1 . 6 1 2 Communications Jammed 223 | . . . . . . . . . . . . . . . . . 223 . . Distress Signals 223 | . . . . . . . . . . . . . . . . . 223 . . Times Spotted 446 | . 5 3 33 4 14 27 32 31 11 25 20 53 9 37 12 . 95 11 24 Peak Tracking Total 15 | . 2 3 4 4 5 4 5 7 3 9 4 6 4 7 4 . 13 4 15 Tactical Retreats 19 | . . . . 1 2 . 3 4 . . 1 6 . . . . . 1 1 Traps | -11 -10 -10 -9 -9 -8 -8 -8 -8 -7 -7 -6 -6 -5 -5 -4 -4 -3 -3 -3 ------- Run | Yrd Mat Min Mat Min Mat Gar Mat Gar Fac Gar Fac Gar Fac Gar Fac Gar Res Qua Sec Traps Triggered 28 | . 1 . 1 . . 2 2 4 1 6 1 7 . 1 . 1 . 1 . Indirectly . | . . . . . . . . . . . . . . . . . . . . Trap Hack Attempts . | . . . . . . . . . . . . . . . . . . . . Triggered . | . . . . . . . . . . . . . . . . . . . . Disarmed . | . . . . . . . . . . . . . . . . . . . . Reprogrammed . | . . . . . . . . . . . . . . . . . . . . Reused . | . . . . . . . . . . . . . . . . . . . . Traps Extracted . | . . . . . . . . . . . . . . . . . . . . Installed . | . . . . . . . . . . . . . . . . . . . . Triggered . | . . . . . . . . . . . . . . . . . . . . Machines | -11 -10 -10 -9 -9 -8 -8 -8 -8 -7 -7 -6 -6 -5 -5 -4 -4 -3 -3 -3 ---------- Run | Yrd Mat Min Mat Min Mat Gar Mat Gar Fac Gar Fac Gar Fac Gar Fac Gar Res Qua Sec Machines Disabled 74 | . . . 3 . 1 1 3 3 9 7 2 6 . 4 15 4 6 8 2 Max in Single Turn 10 | . . . 1 . 1 1 1 1 8 1 2 1 . 1 10 1 1 1 1 Garrison Access 2 | . . . . . . . . . 2 . . . . . . . . . . Garrison Relay 17 | . . . . . . . . 2 . 5 . 3 . 3 . 4 . . . Machines Repaired . | . . . . . . . . . . . . . . . . . . . . Machines Dismantled . | . . . . . . . . . . . . . . . . . . . . Machines Sabotaged . | . . . . . . . . . . . . . . . . . . . . Overloaded Fab Kills . | . . . . . . . . . . . . . . . . . . . . Hacking | -11 -10 -10 -9 -9 -8 -8 -8 -8 -7 -7 -6 -6 -5 -5 -4 -4 -3 -3 -3 --------- Run | Yrd Mat Min Mat Min Mat Gar Mat Gar Fac Gar Fac Gar Fac Gar Fac Gar Res Qua Sec Machines Accessed 74 | . 2 1 6 1 4 2 7 4 16 3 6 2 5 2 2 4 3 1 3 Terminals 44 | . 1 1 3 . 2 2 4 4 6 3 3 2 1 2 1 4 2 1 2 Fabricators 5 | . . . . . . . . . 2 . 1 . 1 . . . 1 . . Repair Stations 4 | . . . 1 . . . 1 . 1 . . . 1 . . . . . . Recycling Units 6 | . 1 . . . 1 . 1 . 2 . . . 1 . . . . . . Scanalyzers 6 | . . . 2 . . . . . 2 . 1 . . . . . . . 1 Garrison Access 8 | . . . . . 1 . 1 . 3 . 1 . 1 . 1 . . . . Total Hacks 178 | . 4 4 20 1 12 4 23 7 37 8 17 6 5 3 3 4 11 3 6 Successful 87 | . 1 2 13 1 7 1 14 2 20 1 6 1 2 1 1 3 5 2 4 Failed 89 | . 3 2 6 . 5 3 9 5 17 7 11 5 3 2 2 1 6 1 1 Catastrophic 17 | . . . . . . 3 1 . 5 1 2 1 1 . . . 2 . 1 Database Lockouts 2 | . . . 1 . . . . . . . . . . . . . . . 1 Manual 61 | . . 4 5 . 5 . 9 1 12 1 6 . 3 . 2 . 10 1 2 Terminals 118 | . 1 4 11 . 7 4 14 7 21 8 10 6 1 3 2 4 8 3 4 Fabricators 11 | . . . . . . . . . 3 . 4 . 1 . . . 3 . . Repair Stations 13 | . . . 5 . . . 6 . 1 . . . 1 . . . . . . Recycling Units 13 | . 3 . . . 3 . 2 . 4 . . . 1 . . . . . . Scanalyzers 13 | . . . 4 . . . . . 5 . 2 . . . . . . . 2 Garrison Access 9 | . . . . . 2 . 1 . 3 . 1 . 1 . 1 . . . . Terminal Hacks 34 | . . 2 6 1 3 1 4 2 5 1 1 1 . 1 . 3 1 1 1 Prototype ID Bank 6 | . . 2 1 . 1 . . . 1 . 1 . . . . . . . . Open Door 2 | . . . . 1 . . . . . . . . . . . 1 . . . Branch Access Points 1 | . . . . . . . . . . . . . . . . . 1 . . Emergency Access Points 4 | . . . . . . 1 . 1 . 1 . 1 . . . . . . . Machine Index 1 | . . . . . . . . . 1 . . . . . . . . . . Alert Level 4 | . . . 3 . . . 1 . . . . . . . . . . . . Unreport Threat 7 | . . . 1 . . . 3 . 2 . . . . . . . . . 1 Locate Traps 2 | . . . 1 . 1 . . . . . . . . . . . . . . Zone Layout 3 | . . . . . 1 . . . 1 . . . . . . . . 1 . Garrison Registry 3 | . . . . . . . . 1 . . . . . 1 . 1 . . . Patrol Navigation 1 | . . . . . . . . . . . . . . . . 1 . . . Fabricator Hacks 2 | . . . . . . . . . . . 1 . . . . . 1 . . Network Status 2 | . . . . . . . . . . . 1 . . . . . 1 . . Repair Station Hacks 7 | . . . 2 . . . 5 . . . . . . . . . . . . Scan Component 4 | . . . 1 . . . 3 . . . . . . . . . . . . Repair 3 | . . . 1 . . . 2 . . . . . . . . . . . . Recycling Unit Hacks 6 | . 1 . . . 1 . 2 . 2 . . . . . . . . . . Retrieve Components 6 | . 1 . . . 1 . 2 . 2 . . . . . . . . . . Scanalyzer 9 | . . . 3 . . . . . 5 . . . . . . . . . 1 Insert Component 1 | . . . 1 . . . . . . . . . . . . . . . . Analyze 1 | . . . 1 . . . . . . . . . . . . . . . . Retrieve Study 7 | . . . 1 . . . . . 5 . . . . . . . . . 1 Garrison Access Hacks 8 | . . . . . 1 . 1 . 3 . 1 . 1 . 1 . . . . Unlock Access 6 | . . . . . 1 . 1 . 1 . 1 . 1 . 1 . . . . Seal Access 2 | . . . . . . . . . 2 . . . . . . . . . . Unauthorized Hacks 21 | . . . 2 . 2 . 2 . 5 . 3 . 1 . . . 3 1 2 Terminals 13 | . . . 2 . 1 . 2 . 2 . 1 . . . . . 2 1 2 Assimilate 1 | . . . . . . . . . . . . . . . . . . . 1 Botnet 12 | . . . 2 . 1 . 2 . 2 . 1 . . . . . 2 1 1 Fabricators 6 | . . . . . . . . . 2 . 2 . 1 . . . 1 . . Report 2 | . . . . . . . . . 1 . 1 . . . . . . . . Liberate 4 | . . . . . . . . . 1 . 1 . 1 . . . 1 . . Repair Stations 1 | . . . . . . . . . 1 . . . . . . . . . . Mechanics 1 | . . . . . . . . . 1 . . . . . . . . . . Recycling Units . | . . . . . . . . . . . . . . . . . . . . Scanalyzers . | . . . . . . . . . . . . . . . . . . . . Garrison Access 1 | . . . . . 1 . . . . . . . . . . . . . . Restock 1 | . . . . . 1 . . . . . . . . . . . . . . Data Cores Recovered . | . . . . . . . . . . . . . . . . . . . . Used . | . . . . . . . . . . . . . . . . . . . . Hacking Detections 58 | . 2 1 4 . 3 2 4 2 11 3 6 2 5 2 2 3 3 . 3 Full Trace Events 5 | . . . 1 . . 1 . . . . 1 2 . . . . . . . Feedback Events 1 | . . . . . . . . . . . . 1 . . . . . . . Corruption 1 | . . . . . . . . . . . . 1 . . . . . . . Feedback Blocked . | . . . . . . . . . . . . . . . . . . . . Robot Schematics Acquired . | . . . . . . . . . . . . . . . . . . . . Robots Built . | . . . . . . . . . . . . . . . . . . . . Authchips . | . . . . . . . . . . . . . . . . . . . . Time . | . . . . . . . . . . . . . . . . . . . . Total Robot Build Rating . | . . . . . . . . . . . . . . . . . . . . Part Schematics Acquired 1 | . . . 1 . . . . . . . . . . . . . . . . Parts Built . | . . . . . . . . . . . . . . . . . . . . Authchips . | . . . . . . . . . . . . . . . . . . . . Time . | . . . . . . . . . . . . . . . . . . . . Total Part Build Rating . | . . . . . . . . . . . . . . . . . . . . Part Studies Acquired 7 | . . . 1 . . . . . 5 . . . . . . . . . 1 Parts Repaired 3 | . . . 1 . . . 2 . . . . . . . . . . . . Time 90 | . . . 26 . . . 64 . . . . . . . . . . . . Parts Recycled . | . . . . . . . . . . . . . . . . . . . . Recycled Matter . | . . . . . . . . . . . . . . . . . . . . Retrieved Matter . | . . . . . . . . . . . . . . . . . . . . Retrieved Components 6 | . 3 . . . 1 . . . 2 . . . . . . . . . . Parts Scanalyzed 1 | . . . 1 . . . . . . . . . . . . . . . . Part Schematics Acquired 1 | . . . 1 . . . . . . . . . . . . . . . . Parts Damaged . | . . . . . . . . . . . . . . . . . . . . Bothacking | -11 -10 -10 -9 -9 -8 -8 -8 -8 -7 -7 -6 -6 -5 -5 -4 -4 -3 -3 -3 ------------ Run | Yrd Mat Min Mat Min Mat Gar Mat Gar Fac Gar Fac Gar Fac Gar Fac Gar Res Qua Sec Used RIF Installer 6 | . . . . . . 1 . 1 . 1 . 1 . 1 . 1 . . . Signal Jammer 1 | . . . . . . . . . . . . . . . . 1 . . . Zone Cloak 1 | . . . . . . . . . . 1 . . . . . . . . . Watcher Feeds 1 | . . . . . . . . . . . . . . 1 . . . . . Alert ID Control 1 | . . . . . . . . 1 . . . . . . . . . . . Program Shield 1 | . . . . . . . . . . . . 1 . . . . . . . Robots Hacked 59 | . . . . . . . . 3 3 4 3 8 2 9 9 . 17 1 . Non-combat 15 | . . . . . . . . . 2 . 3 . 2 . 2 . 5 1 . Combat 44 | . . . . . . . . 3 1 4 . 8 . 9 7 . 12 . . Robot Hacks Applied 67 | . . . . . . . . 4 3 4 3 8 4 9 13 . 18 1 . parse_system 5 | . . . . . . . . 1 . . . . . . . . 3 1 . drop_inventory 6 | . . . . . . . . . 2 . 2 . . . . . 2 . . recall_reinforcements 1 | . . . . . . . . . . . . . . . . . 1 . . purge_threat 2 | . . . . . . . . . . . . . . . 2 . . . . block_reporting 2 | . . . . . . . . . . . . . 1 . 1 . . . . summon_haulers 1 | . . . . . . . . . . . . . . . 1 . . . . clear_repairs 1 | . . . . . . . . . . . . . 1 . . . . . . redirect_shields 1 | . . . . . . . . . . . . . . . . . 1 . . amplify_resonance 8 | . . . . . . . . . . 1 . 4 . 3 . . . . . disable_weapons 1 | . . . . . . . . . . . . 1 . . . . . . . reboot_system 1 | . . . . . . . . . . . . . . . 1 . . . . overwrite_iff 8 | . . . . . . . . . 1 . . . . . 3 . 4 . . formatsys_low 5 | . . . . . . . . . . . 1 . 2 . 2 . . . . formatsys_high 24 | . . . . . . . . 3 . 3 . 3 . 5 3 . 7 . . formatsys_deep 1 | . . . . . . . . . . . . . . 1 . . . . . Relay Couplers Released 77 | . . . . . 3 4 . 10 . 19 . 11 . 13 . 17 . . . Machine Destruction 70 | . . . . . . . . 10 . 19 . 11 . 13 . 17 . . . Programmers 7 | . . . . . 3 4 . . . . . . . . . . . . . Attached 32 | . . . . . . 1 . 2 1 5 1 4 1 6 2 4 4 1 . Fabnet Peak Effective % . | . . . . . . . . . . . . . . . . . . . . Robots Rewired 37 | . . . . . . . . . . 6 . 8 2 8 3 10 . . . Allies Hacked . | . . . . . . . . . . . . . . . . . . . . Hacks Repelled . | . . . . . . . . . . . . . . . . . . . . Allies | -11 -10 -10 -9 -9 -8 -8 -8 -8 -7 -7 -6 -6 -5 -5 -4 -4 -3 -3 -3 -------- Run | Yrd Mat Min Mat Min Mat Gar Mat Gar Fac Gar Fac Gar Fac Gar Fac Gar Res Qua Sec Total Allies 88 | . . 1 . . . . . 3 1 12 1 13 4 16 11 12 14 . . Largest Group 32 | . . 1 1 . . . . 3 2 12 12 10 12 16 20 32 28 . . Highest-Rated Group 1504 | . . 31 31 . . . . 61 45 456 456 405 471 660 847 1504 1281 . . Highest-Rated Ally 99 | . . 31 31 . . . . 29 29 80 80 95 88 83 58 99 99 . . Total Orders 54 | . . . . . . . . . . . 1 11 4 30 2 2 4 . . STAY 17 | . . . . . . . . . . . . 5 1 11 . . . . . FOLLOW 11 | . . . . . . . . . . . . 1 1 9 . . . . . AID 26 | . . . . . . . . . . . 1 5 2 10 2 2 4 . . Ally Attacks 524 | . . . 4 . . . . 16 14 15 58 77 11 50 62 . 217 . . Total Damage 14631 | . . . 64 . . . . 111 168 338 1465 2588 636 1321 1344 . 6596 . . Kills 93 | . . . 2 . . . . 2 2 4 13 10 8 7 8 . 37 . . Allies Corrupted 4 | . . . . . . . . . . . 1 . . . . . 3 . . Allies Melted . | . . . . . . . . . . . . . . . . . . . . Intel | -11 -10 -10 -9 -9 -8 -8 -8 -8 -7 -7 -6 -6 -5 -5 -4 -4 -3 -3 -3 ------- Run | Yrd Mat Min Mat Min Mat Gar Mat Gar Fac Gar Fac Gar Fac Gar Fac Gar Res Qua Sec Active Infowar (turns) 15334 | . 101 47 126 . 416 1456 1076 1281 1504 1424 645 1975 382 1698 365 778 1209 638 213 Optics 15334 | . 101 47 126 . 416 1456 1076 1281 1504 1424 645 1975 382 1698 365 778 1209 638 213 Sensors 727 | . . . . . . . . . . . . . . . . . . 517 210 Structural 231 | . . . . . . . . . . . . . 230 . . 1 . . . Robot Analysis Total . | . . . . . . . . . . . . . . . . . . . . Derelict Logs Recovered 2 | . . . . 2 . . . . . . . . . . . . . . . Drone Launches 4 | . . . . . . . . 4 . . . . . . . . . . . Drone Recoveries 4 | . . . . . . . . 4 . . . . . . . . . . . Exploration | -11 -10 -10 -9 -9 -8 -8 -8 -8 -7 -7 -6 -6 -5 -5 -4 -4 -3 -3 -3 ------------- Run | Yrd Mat Min Mat Min Mat Gar Mat Gar Fac Gar Fac Gar Fac Gar Fac Gar Res Qua Sec Turns Passed 17387 | 59 266 47 1255 559 554 1456 1076 1281 1504 1424 645 1975 382 1698 365 778 1209 638 216 Spaces Moved 10789 | 43 166 26 791 430 309 988 607 730 1112 902 401 1167 245 942 204 472 435 556 263 Core 395 | 19 . . . . . . . . . . . . . . . . 20 351 5 Treads 220 | . . . . . . . . . . . . . . . . . 157 63 . Legs 2759 | 24 166 26 791 430 309 988 25 . . . . . . . . . . . . Wheels 7039 | . . . . . . . 582 730 1112 902 401 1167 245 942 204 472 258 24 . Hover 376 | . . . . . . . . . . . . . . . . . . 118 258 Flight . | . . . . . . . . . . . . . . . . . . . . Fastest Speed 50 | 50 120 120 120 120 120 120 98 100 106 120 120 124 124 124 141 141 50 50 50 Average Speed 122 | 99 120 120 120 120 120 122 110 116 121 121 128 127 132 139 141 141 176 70 53 Slowest Speed 280 | 120 120 120 120 120 120 190 260 205 125 135 135 135 135 150 141 141 270 280 200 Overloaded Moves . | . . . . . . . . . . . . . . . . . . . . Propulsion Burnouts . | . . . . . . . . . . . . . . . . . . . . Robots Hopped . | . . . . . . . . . . . . . . . . . . . . Potential Cave-ins . | . . . . . . . . . . . . . . . . . . . . Cave-ins Triggered . | . . . . . . . . . . . . . . . . . . . . Exploration Rate (%) 47 | 3 29 6 58 91 27 89 58 59 32 95 14 84 9 91 7 86 23 63 16 Regions Visited 19 Branch Regions 4 Pre-discovered Areas 1 | . . . . 1 . . . . . . . . . . . . . . . Known Exits Taken 8 | . . . . . 1 . 1 . 1 . 1 . 1 . 1 . 1 1 . Unknown Exits Taken 5 | 1 1 1 1 1 . . . . . . . . . . . . . . . Scrap Searched 1 | . . . . 1 . . . . . . . . . . . . . . . Spaces Dug 98 | . . . 18 . . 43 . . 8 1 1 18 . 5 . . 1 . 3 Terrain Destroyed 500 | . . . 54 . . 72 63 37 33 54 33 43 4 59 . 2 38 5 3 Melee 7 | . . . . . . . . . 4 . . . . . . . . . 3 Projectile 111 | . . . . . . . 3 . 4 11 3 29 4 22 . 2 28 5 . AOE 382 | . . . 54 . . 72 60 37 25 43 30 14 . 37 . . 10 . . Terrain Rammed . | . . . . . . . . . . . . . . . . . . . . Walls Destroyed . | . . . . . . . . . . . . . . . . . . . . Machines Disabled . | . . . . . . . . . . . . . . . . . . . . Actions | -11 -10 -10 -9 -9 -8 -8 -8 -8 -7 -7 -6 -6 -5 -5 -4 -4 -3 -3 -3 --------- Run | Yrd Mat Min Mat Min Mat Gar Mat Gar Fac Gar Fac Gar Fac Gar Fac Gar Res Qua Sec Total 13806 | 56 204 34 993 460 433 1118 874 1020 1227 1124 511 1505 294 1251 283 580 752 769 318 Wait 1301 | . 10 5 75 12 64 21 151 113 21 55 81 168 24 177 41 46 83 121 33 Move 10775 | 42 165 25 790 429 308 987 607 729 1112 901 401 1166 245 941 204 471 434 555 263 Hop . | . . . . . . . . . . . . . . . . . . . . Pick Up 142 | 7 5 . 15 1 7 5 17 13 13 13 2 10 . 11 2 6 10 5 . Fast Attach 77 | 5 1 . 6 3 2 2 5 4 9 3 3 . 2 2 2 . 10 15 3 Attach 98 | 1 . . 2 . 1 5 7 14 3 7 1 4 2 6 3 2 23 17 . Detach 31 | . . . . . 1 1 1 2 1 1 . . . . 1 1 9 13 . Swap 117 | 1 2 . 19 . 10 10 10 1 9 13 5 13 3 11 1 3 6 . . Drop 135 | . 5 . 22 4 11 1 4 3 25 17 4 7 2 2 2 4 14 7 1 Fire 975 | . 16 4 61 6 27 76 72 125 26 81 14 112 16 93 25 26 159 36 . Melee 24 | . . . . . . . . . 8 6 . . . . . . . . 10 Ram 10 | . . . . . . . . . . 1 . . . . . . 1 . 8 Kick 10 | . . . 3 5 2 . . . . . . . . . . . . . . Crush 1 | . . . . . . . . . . . . . . . . . 1 . . Escape Stasis 80 | . . . . . . 10 . 16 . 24 . 24 . 6 . . . . . Rewire 30 | . . . . . . . . . . 2 . 1 . 2 2 21 2 . . Trap . | . . . . . . . . . . . . . . . . . . . . Miscellaneous . | . . . . . . . . . . . . . . . . . . . . Route ------- -11/Scrapyard -10/Materials -10/Mines -9/Materials (discovered 3 exits: *Mat x2 / *Min) -9/Mines (discovered 4 exits: *Mat x2 / [*Exi] / [*Zio]) -8/Materials -8/Garrison (discovered 4 exits: *Mat x4) -8/Materials (discovered 3 exits: *Fac x2 / Gar) -8/Garrison (discovered 3 exits: *Fac x3) -7/Factory -7/Garrison (discovered 3 exits: *Fac x3) -6/Factory (discovered 2 exits: [*Low] / Gar) -6/Garrison (discovered 3 exits: *Fac x3) -5/Factory -5/Garrison (discovered 3 exits: *Fac x3) -4/Factory -4/Garrison (discovered 4 exits: *Res x3 / [*Fac]) -3/Research (discovered 2 exits: *Qua x2) -3/Quarantine (discovered 2 exits: *Sec / *Frg) -3/Section 7 History --------- Turn | Location | Event 24 | -11/Scrapyard | Discovered new exit (range 16) 60 | -11/Scrapyard | Entered Materials 312 | -10/Materials | Build established: Mutant 320 | -10/Materials | Discovered new exit (range 6) 326 | -10/Materials | Entered Mines 329 | -10/Mines | Received a Mining Laser from a helpful Derelict 336 | -10/Mines | Discovered new exit (range 10) 362 | -10/Mines | Assembled infested the area 367 | -10/Mines | Assisted by a Guerilla fighting off Assembled 373 | -10/Mines | Entered Materials 373 | -9/Materials | Accompanied by 1 ally 373 | -9/Materials | Evolved 2 slots: Propulsion x1, Utility x1 668 | -9/Materials | Central database locked down 698 | -9/Materials | Discovered new exit (range 5) 757 | -9/Materials | Build established: Scavenger-Mutant 944 | -9/Materials | Discovered new exit (range 13) 1096 | -9/Materials | Build established: Mutant 1402 | -9/Materials | Discovered new exit (range 16) 1424 | -9/Materials | Repaired Grenade Launcher 1628 | -9/Materials | Entered Mines 1633 | -9/Mines | Found the Drone Emporium 1638 | -9/Mines | Learned location of Zion (-7) 1641 | -9/Mines | Found Prototype Device 1641 | -9/Mines | Identified Splice Drone Bay 1680 | -9/Mines | Deemed a non-threat by the Exiles lab entrance 1680 | -9/Mines | Discovered new exit (range 5) 1818 | -9/Mines | Discovered new exit (range 4) 1869 | -9/Mines | A Derelict revealed a hidden shortcut to a safe place 2002 | -9/Mines | Learned location of 1 exit from Proximity Caves 2135 | -9/Mines | Found a damaged Exp. Sensor Array with a note attached 2178 | -9/Mines | Discovered new exit (range 6) 2187 | -9/Mines | Entered Materials 2187 | -8/Materials | Evolved 2 slots: Utility x1, Weapon x1 2551 | -8/Materials | Garrison activated, responded to threat 2566 | -8/Materials | Build established: Tank 2697 | -8/Materials | Identified exit to Garrison 2741 | -8/Materials | Entered Garrison 2797 | -8/Garrison | Triggered checkpoint 2837 | -8/Garrison | Triggered checkpoint 2905 | -8/Garrison | Triggered checkpoint 2905 | -8/Garrison | Triggered checkpoint 2945 | -8/Garrison | Discovered new exit (range 13) 3061 | -8/Garrison | Triggered checkpoint 3476 | -8/Garrison | Discovered new exit (range 5) 3597 | -8/Garrison | Triggered checkpoint 3653 | -8/Garrison | Triggered checkpoint 3704 | -8/Garrison | Lost 3 parts (1n1u1w) 3726 | -8/Garrison | Installed Relay Interface Framework 3753 | -8/Garrison | Discovered new exit (range 11) 3795 | -8/Garrison | Triggered checkpoint 3800 | -8/Garrison | Discovered new exit (range 5) 3944 | -8/Garrison | Build established: Skirmisher 4197 | -8/Garrison | Entered Materials 4289 | -8/Materials | Lost 3 parts (2n1u) 4568 | -8/Materials | Discovered new exit (range 19) 4633 | -8/Materials | Repaired Arm. Wheel 4667 | -8/Materials | Repaired Arm. Wheel 5053 | -8/Materials | Discovered new exit (range 13) 5230 | -8/Materials | Garrison activated, responded to threat 5273 | -8/Materials | Identified exit to Garrison 5273 | -8/Materials | Entered Garrison 5599 | -8/Garrison | Triggered checkpoint 5609 | -8/Garrison | Triggered checkpoint 5610 | -8/Garrison | Triggered checkpoint 5622 | -8/Garrison | Triggered checkpoint 5629 | -8/Garrison | Core integrity fell below 50% 5669 | -8/Garrison | Destroyed 18 combat bots 5700 | -8/Garrison | Lost 10 parts (1p3n2u4w) 5755 | -8/Garrison | Discovered new exit (range 34) 5755 | -8/Garrison | Discovered new exit (range 32) 5755 | -8/Garrison | Discovered new exit (range 48) 5890 | -8/Garrison | Expanded RIF knowledge: Alert ID Control 5936 | -8/Garrison | Lost 3 parts (1p1n1w) 5947 | -8/Garrison | Build established: Bothacker-Mutant 6097 | -8/Garrison | Garrison Relay disabled 6283 | -8/Garrison | Build established: Bothacker-Skirmisher 6400 | -8/Garrison | Garrison Relay disabled 6554 | -8/Garrison | Entered Factory 6554 | -7/Factory | Accompanied by 1 ally 6554 | -7/Factory | Evolved 2 slots: Utility x2 6949 | -7/Factory | Build established: Bothacker-Tank 7567 | -7/Factory | Found Rocket Array 7572 | -7/Factory | Found Rocket Array 8058 | -7/Factory | Identified exit to Garrison 8058 | -7/Factory | Entered Garrison 8075 | -7/Garrison | Build established: Bothacker-Mutant 8116 | -7/Garrison | Triggered checkpoint 8212 | -7/Garrison | Garrison Relay disabled 8282 | -7/Garrison | Triggered checkpoint 8337 | -7/Garrison | Destroyed 8 combat bots 8451 | -7/Garrison | Found embedded Infiltrators 8531 | -7/Garrison | Discovered new exit (range 8) 8586 | -7/Garrison | Triggered checkpoint 8605 | -7/Garrison | Garrison Relay disabled 8757 | -7/Garrison | Rescued a captive Derelict 8807 | -7/Garrison | Triggered checkpoint 8844 | -7/Garrison | Triggered checkpoint 8854 | -7/Garrison | Triggered checkpoint 8869 | -7/Garrison | Build established: Bothacker-Tank 9053 | -7/Garrison | Discovered new exit (range 12) 9121 | -7/Garrison | Garrison Relay disabled 9173 | -7/Garrison | Garrison Relay disabled 9258 | -7/Garrison | Triggered checkpoint 9290 | -7/Garrison | Garrison Relay disabled 9378 | -7/Garrison | Discovered new exit (range 17) 9399 | -7/Garrison | Expanded RIF knowledge: Zone Cloak 9482 | -7/Garrison | Entered Factory 9482 | -6/Factory | Accompanied by 12 allies 9482 | -6/Factory | Evolved 2 slots: Utility x2 9543 | -6/Factory | Discovered new exit (range 17) 10057 | -6/Factory | Lost 5 allies 10107 | -6/Factory | Identified exit to Garrison 10127 | -6/Factory | Entered Garrison 10127 | -6/Garrison | Accompanied by 3 allies 10413 | -6/Garrison | Triggered checkpoint 10531 | -6/Garrison | Triggered checkpoint 10762 | -6/Garrison | Expanded RIF knowledge: Program Shield 10774 | -6/Garrison | Garrison Relay disabled 10829 | -6/Garrison | Triggered checkpoint 10885 | -6/Garrison | Discovered new exit (range 19) 11046 | -6/Garrison | Build established: Botlord-Tank 11081 | -6/Garrison | Discovered new exit (range 10) 11241 | -6/Garrison | Triggered checkpoint 11253 | -6/Garrison | Garrison Relay disabled 11410 | -6/Garrison | Found embedded Infiltrators 11449 | -6/Garrison | Found Fusion Bomb Launcher 11640 | -6/Garrison | Discovered new exit (range 9) 11759 | -6/Garrison | Triggered checkpoint 11785 | -6/Garrison | Triggered checkpoint 11890 | -6/Garrison | Garrison Relay disabled 12102 | -6/Garrison | Entered Factory 12102 | -5/Factory | Accompanied by 9 allies 12102 | -5/Factory | Evolved 2 slots: Utility x2 12293 | -5/Factory | Spotted B-75 Beast 12297 | -5/Factory | Allies destroyed B-75 Beast 12406 | -5/Factory | Garrison activated, responded to threat 12482 | -5/Factory | Identified exit to Garrison 12484 | -5/Factory | Entered Garrison 12484 | -5/Garrison | Accompanied by 5 allies 12584 | -5/Garrison | Triggered checkpoint 12778 | -5/Garrison | Spotted B-75 Beast 12808 | -5/Garrison | Destroyed B-75 Beast 12907 | -5/Garrison | Found Relay Coupler [Proto] 12934 | -5/Garrison | Garrison Relay disabled 13078 | -5/Garrison | Triggered checkpoint 13100 | -5/Garrison | Triggered checkpoint 13117 | -5/Garrison | Assimilated ARC 6a with formatsys_deep 13280 | -5/Garrison | Triggered checkpoint 13314 | -5/Garrison | Triggered checkpoint 13514 | -5/Garrison | Triggered checkpoint 13560 | -5/Garrison | Garrison Relay disabled 13670 | -5/Garrison | Discovered new exit (range 18) 13749 | -5/Garrison | Destroyed 7 combat bots 13804 | -5/Garrison | Triggered checkpoint 13888 | -5/Garrison | Triggered checkpoint 13921 | -5/Garrison | Garrison Relay disabled 13966 | -5/Garrison | Discovered new exit (range 13) 14094 | -5/Garrison | Discovered new exit (range 13) 14117 | -5/Garrison | Expanded RIF knowledge: Watcher Feeds 14151 | -5/Garrison | Discovered new exit (range 17) 14151 | -5/Garrison | Discovered new exit (range 87) 14151 | -5/Garrison | Discovered new exit (range 55) 14182 | -5/Garrison | Entered Factory 14182 | -4/Factory | Accompanied by 15 allies 14182 | -4/Factory | Evolved 2 slots: Utility x2 14225 | -4/Factory | Garrison activated, responded to threat 14366 | -4/Factory | Lost 3 allies 14432 | -4/Factory | First assault squad dispatched 14502 | -4/Factory | Garrison activated, responded to threat 14532 | -4/Factory | Identified exit to Garrison 14547 | -4/Factory | Entered Garrison 14547 | -4/Garrison | Discovered recently destroyed garrison 14547 | -4/Garrison | Accompanied by 20 allies 14570 | -4/Garrison | Discovered new exit (range 3) 14644 | -4/Garrison | Garrison Relay disabled 14663 | -4/Garrison | Garrison Relay disabled 14667 | -4/Garrison | Garrison Relay disabled 14701 | -4/Garrison | Garrison Relay disabled 14748 | -4/Garrison | Found embedded Infiltrators 14784 | -4/Garrison | Discovered new exit (range 30) 14784 | -4/Garrison | Discovered new exit (range 49) 14784 | -4/Garrison | Discovered new exit (range 49) 14784 | -4/Garrison | Discovered new exit (range 32) 14886 | -4/Garrison | Rewired Striker 14889 | -4/Garrison | Rewired Striker 15073 | -4/Garrison | Build established: Commander-Tank 15148 | -4/Garrison | Expanded RIF knowledge: Signal Jamming 15325 | -4/Garrison | Entered Research 15325 | -3/Research | Accompanied by 27 allies 15325 | -3/Research | Evolved 2 slots: Utility x2 15337 | -3/Research | Found Prototype Device 15337 | -3/Research | Identified Exp. EM Disruption Field 15472 | -3/Research | Identified exit to Quarantine 15575 | -3/Research | First assault squad dispatched 15575 | -3/Research | Lost 5 allies 15626 | -3/Research | Unchained authorized (QV-33N) 15673 | -3/Research | Spotted B-86 Titan 15699 | -3/Research | Allies destroyed B-86 Titan 15722 | -3/Research | Lost 15 allies 15812 | -3/Research | Cargo convoy interrupted 15812 | -3/Research | Spotted Striker 15815 | -3/Research | Spotted Executioner 15863 | -3/Research | Destroyed Executioner 15897 | -3/Research | Found Prototype Processor 15897 | -3/Research | Identified Exp. Core Analyzer 15900 | -3/Research | Found Exp. Core Analyzer 15903 | -3/Research | Lost 12 allies 15906 | -3/Research | Lost 10 parts (1p7u2w) 15909 | -3/Research | Destroyed 13 combat bots 15957 | -3/Research | Found Prototype Device 15957 | -3/Research | Identified Exp. Focal Shield 16081 | -3/Research | Lost 3 parts (2u1w) 16127 | -3/Research | Build established: Botlord-Gunner 16451 | -3/Research | Core integrity fell below 50% 16462 | -3/Research | Garrison activated, responded to threat 16514 | -3/Research | System corruption reached 10% 16534 | -3/Research | Entered Quarantine 16545 | -3/Quarantine | Lost 4 parts (1p2n1w) 16699 | -3/Quarantine | Found Alien Artifact 16801 | -3/Quarantine | Found Alien Artifact 16801 | -3/Quarantine | Identified Terrabomb 16801 | -3/Quarantine | Used Terrabomb 16817 | -3/Quarantine | Found Terrabomb 16871 | -3/Quarantine | Found Alien Energy Cannon 16913 | -3/Quarantine | Found Alien Artifact 16913 | -3/Quarantine | Identified Subatomic Replicator 16919 | -3/Quarantine | Identified Phase Armor 16921 | -3/Quarantine | Used Terrabomb 16984 | -3/Quarantine | Identified Core Cannon 17026 | -3/Quarantine | Found Alien Slashing Weapon 17026 | -3/Quarantine | Identified Sigix Broadsword 17034 | -3/Quarantine | First assault squad dispatched 17072 | -3/Quarantine | Spotted Fortress 17107 | -3/Quarantine | Discovered new exit (range 6) 17107 | -3/Quarantine | Discovered new exit (range 6) 17110 | -3/Quarantine | Identified exit to Protoforge 17111 | -3/Quarantine | Identified exit to Section 7 17172 | -3/Quarantine | Entered Section 7 17179 | -3/Section 7 | Found Alien Artifact 17179 | -3/Section 7 | Identified Integrated Mediator 17179 | -3/Section 7 | Installed Integrated Mediator, increased core attachment efficiency 17214 | -3/Section 7 | Spotted S7 Guard 17222 | -3/Section 7 | Found Alien Artifact 17222 | -3/Section 7 | Identified Core Physics Calibrator 17263 | -3/Section 7 | Central database locked down 17276 | -3/Section 7 | Spotted S7 Guard 17326 | -3/Section 7 | Build established: Scavenger-Scout 17376 | -3/Section 7 | Core integrity fell below 20% 17388 | -3/Section 7 | Destroyed by S-43 Plague with Heavy Machine Gun Last Messages --------------- 17369_ Detecting nearby Garrison Access. 17370_ Slammed into K-01 Serf. 17375_ Imp. Antigrav System+ destroyed. 17376_ K-01 Serf cleans the Dark Matter Chamber. 17377_ Lgt. Antimatter Reactor destroyed. 17378_ Imp. Antigrav System+ destroyed. 17380_ K-01 Serf cleans the Dark Matter Chamber. 17380_ Relay Coupler [Grunt] destroyed. 17380_ Dropped Med. Storage Unit. 17382_ System corrupted: Matter fused (-9). 17382_ Slammed into S-43 Plague. 17382_ Adv. Sensor Array broken. 17382_ Destabilizing: Short circuit. 17384_ Slammed into S-43 Plague. 17385_ Destabilizing: System interference. 17385_ Adv. Visual Processing Unit temporarily disabled. 17386_ Slammed into S-43 Plague. 17386_ Broken Adv. Sensor Array destroyed. 17387_ Slammed into S-43 Plague. Map ----- +----------------------------------------------------+ | ?#??#######??????????????????????????????????????? | | ?"??" ?????????????????????????????????????? | | ?"R"" #????????????????????????????????????? | | " " #????????????????????????????????????? | | #????????????????????????????????????? | | #????????????????????????????????????? | | #????????????????????????????????????? | | #????????????????????????????????????? | | """"""" #????????????????????????????????????? | | ? """"""" #????????????????????????????????????? | | ?? """"""" ?????????????????????????????????????? | | ?? ???????????????????????????????????????? | | ###+###+#############????????????????????????????? | | #????????????????????????????? | | ##### #????????????????????????????? | | #???# """ #????????????????????????????? | | #???# """ #????????????????????????????? | | ##???# """ #????????????????????????????? | | #????# """ #????????????????????????????? | | #????# """ #????????????????????????????? | | ### #????# """ #????????????????????????????? | | ??# #????# """ #????????????""??????????????? | | ??# #????# #??????????"""""?????????????? | | #?# #????# ! #???????? ??????????????? | | #?# #????# ks####### """""???????????????? | | #?# #????# sss @s """""???????????????? | | #?# ????# ########+####### """""???????????????? | | ??? ????# ?????? ??????? ??????????????? | | ??? ????# ????# !#??????? ????????????? | | ??? ????# ????# #????????? !???????????? | | ??? ????# ????# #??????????? #??????????? | | ??? ????# ????# #?????????????##??????????? | | ??? ???#/????#########?????????????????????????? | | ??? ???? ??????????????????????????????????????? | | ??? ???? ??????????????????????????????????????? | | ??? ???? ??????????????????????????????????????? | | ?????????????????????????????????????????????????? | | ?????????????????????????????????????????????????? | | ?????????????????????????????????????????????????? | | ?????????????????????????????????????????????????? | | ?????????????????????????????????????????????????? | | ?????????????????????????????????????????????????? | | ?????????????????????????????????????????????????? | | ?????????????????????????????????????????????????? | | ?????????????????????????????????????????????????? | | ?????????????????????????????????????????????????? | | ?????????????????????????????????????????????????? | | ?????????????????????????????????????????????????? | | ?????????????????????????????????????????????????? | | ?????????????????????????????????????????????????? | +----------------------------------------------------+ Best States ------------- Heat Dissipation 64 Energy Generation 23 Energy Capacity 340 Matter Stores 645 Matter Capacity 1200 Sight Range 20 Robot Scan Range 16 Terrain Scan Density 10 Armor Coverage 600 Resistance: KI 30 Resistance: TH 30 Core Shielding 30 Utility Shielding 66 Weapon Cycling 25 Evasion (%) 55 Targeting Accuracy 5 Core Analysis 12 Recoil Reduction 3 Offensive Hacking 10 Defensive Hacking 10 Relay Coupler Types 6 Relay Coupler Value 126 Item Schematics ----------------- Wheel | -9/Materials | Scanalyzed Robot Schematics ------------------ None Fabricated ------------ Nothing Repaired ---------- Grenade Launcher | 61% | -9/Materials Arm. Wheel | 31% | -8/Materials Arm. Wheel | 37% | -8/Materials Studied --------- Wheel | -9/Materials | Hacked Arm. Huge Wheel | -7/Factory | Hacked Remote Datajack | -7/Factory | Hacked Rocket Launcher | -7/Factory | Hacked Imp. Deuterium Engine | -7/Factory | Hacked Com. Wheel | -7/Factory | Hacked Imp. Antigrav System | -3/Section 7 | Hacked Alien Tech Used ----------------- Terrabomb Subatomic Replicator Phase Armor Core Cannon Sigix Broadsword Integrated Mediator Core Physics Calibrator Achievements -------------- None Challenges ------------ None Game ------ Seed FieldArcMicroactuators Manual? 0 Play Time 03:16:20 Cumulative 447.4 hours Start 2026.01.11 @ 21:10:05 End 2026.01.12 @ 18:02:56 Sessions 3 Manual Loads 0 Difficulty Rogue Special Mode None Game No. 212 Rogue 212 Adventurer 0 Explorer 0 Win Type - Total 13 Types 9/0/2/0/0/0/0/1/0/1 Lore% 85 Gallery% 82 Achievement% 61 Wizard Run 0 Options --------- Layout 1 ASCII 0 Keyboard 0 Movement Mouse Keybinds 0 Fullscreen 1 Font 24/Smallcaps Map View 50x35 Zoom Use 0% Tactical HUD 1 Map Filters NONE Filters NONE Steam 1 RUN: cebeb040-ed9b-4260-b528-12ff432aface